[Event "LEM Niedersachsen-Meister 2025"]
[Site "Verden"]
[Date "2025.01.04"]
[Round "6.1"]
[White "Abel, Dennes"]
[Black "von Mettenheim, Johannes"]
[Result "0-1"]
[ECO "A17"]
[WhiteElo "2381"]
[BlackElo "2333"]
[Annotator "TA"]
[PlyCount "102"]
[EventDate "2024.12.27"]
[EventType "swiss"]
[EventCountry "GER"]
[SourceTitle "playchess.com"]
[Source "ChessBase"]
[SourceQuality "1"]
[TimeControl "40/5400+30:1800+30"]

{[%evp 29,102,49,27,42,37,36,43,59,60,32,22,18,109,112,126,108,99,95,131,101,107,102,53,68,95,35,39,-51,-59,-151,-124,-302,-311,-350,-362,-355,-356,-368,-372,-370,-347,-350,-387,-360,-387,-387,-377,-393,-380,-794,-577,-745,-396,-377,0,-539,-497,-485,-443,-520,-518,-510,-494,-520,-438,-6487,-6487,-11230,-6487,-4133,-973,-939,-934,-843,-792]} 1. Nf3 {[%emt 0:00:04]} d5 {[%emt 0:00:11]} 2. e3 {[%emt 0:00:24]} Nf6 {[%emt 0:00:58]} 3. c4 {[%emt 0:00:06]} e6 {[%emt 0:00:09]} 4. Nc3 {[%emt 0:00:08]} b6 {[%emt 0:01:28]} 5. cxd5 {[%emt 0:00:31]} exd5 {[%emt 0:00:05]} 6. g3 {[%emt 0:00:08]} Bb7 {[%emt 0:00:38]} 7. Bg2 {[%emt 0:00:10]} Nbd7 {[%emt 0:01:24]} 8. O-O {[%emt 0:00:36]} a6 {[%emt 0:00:34]} 9. b3 {[%emt 0:00:29]} Bd6 {[%emt 0:00:11]} 10. Bb2 {[%emt 0:00:10]} O-O {[%emt 0:02:33]} 11. Rc1 {[%emt 0:00:33]} c5 {[%emt 0:15:02]} 12. d4 {[%emt 0:01:23]} c4 {[%emt 0:01:59]} 13. Nd2 {[%emt 0:00:48]} cxb3 {[%emt 0:02:31]} 14. Qxb3 {[%emt 0:02:34]} a5 {[%emt 0:06:57]} 15. Nxd5 {[%emt 0:10:32]} (15. Bxd5 $6 $11) 15... Nxd5 {[%emt 0:18:12]} 16. Bxd5 {[%emt 0:00:06]} a4 {[%emt 0:00:28]} 17. Qc4 {[%emt 0:02:37]} b5 $1 {[%emt 0:04:21]} 18. Qxb5 {[%emt 0:01:32]} Ba6 $1 {[%emt 0:00:17]} 19. Qc6 $1 {[%emt 0:00:48]} (19. Qxa4 Nb6 20. Qb3 Nxd5 21. Qxd5 Bxf1 $11) 19... Nb6 {[%emt 0:04:36]} 20. Bc4 {[%emt 0:28:20]} Rc8 {[%emt 0:03:16]} (20... a3 $11 21. Ba1 Rc8 22. Bxa6 Rxc6 23. Rxc6 Be7) 21. Bxa6 $16 {[%emt 0:00:18]} Rxc6 {[%emt 0:00:05]} 22. Rxc6 {[%emt 0:00:05]} Nd5 {[%emt 0:06:11]} 23. a3 {[%emt 0:04:26]} Qe7 {[%emt 0:04:58]} 24. Nc4 {[%emt 0:12:22]} Bb8 {[%emt 0:00:50]} 25. Bb5 {[%emt 0:02:50]} h5 {[%emt 0:05:18]} 26. Bxa4 {[%emt 0:02:52]} h4 {[%emt 0:00:26]} 27. Rc5 {[%emt 0:01:41]} (27. Bc2 $16) 27... Nf6 $1 $14 {[%emt 0:02:50]} 28. Rc1 {[%emt 0:11:37]} (28. gxh4 Ne4 29. Rh5 g6 $17) (28. Bc6 $14) 28... Ne4 $1 $15 {[%emt 0:02:46]} 29. Rc6 {[%emt 0:04:17] [#]} ({White should try} 29. Rf5 $15) 29... Qg5 $1 $17 {[%emt 0:02:18]} 30. Bc2 $2 {[%emt 0:06:01] [#]} (30. f3 $17 {was worth a try.}) 30... Nxf2 $1 $19 {[%emt 0:01:44]} 31. Rc5 {[%emt 0:02:31]} Qg4 {[%emt 0:00:24]} 32. Kxf2 {[%emt 0:02:31]} hxg3+ {[%emt 0:00:12]} 33. Ke1 {[%emt 0:02:19]} gxh2 {[%emt 0:00:54]} 34. Kd2 {[%emt 0:00:08]} Qg2+ {[%emt 0:00:13]} 35. Kc3 {[%emt 0:00:32]} h1=Q {[%emt 0:00:30]} (35... h1=N $2 36. Rh5 g6 (36... Bh2 $2 37. Bh7+ Kh8 38. Be4+ Kg8 39. Bxg2 $18) 37. Rhxh1 $18) 36. Rxh1 {[%emt 0:00:04]} Qxh1 {[%emt 0:00:04]} 37. Kb3 {[%emt 0:00:58]} Ba7 {[%emt 0:01:27]} 38. Rc7 {[%emt 0:00:29]} Qh2 {[%emt 0:01:00]} 39. Ne5 $2 {[%emt 0:01:07]} (39. Rd7) 39... Bb8 {[%emt 0:00:35]} 40. Rb7 {[%emt 0:00:48]} Rc8 {[%emt 0:06:24]} 41. Bf5 {[%emt 0:01:42]} Rf8 $2 {[%emt 0:00:45]} ({Black should play} 41... Rd8 $19 42. Nxf7 Re8) 42. Be4 $2 {[%emt 0:07:35][%mdl 8192]} (42. Bc2 $1 $11 {and White stays safe.} Qg2 43. Rb5) 42... Bxe5 {[%emt 0:01:43]} 43. dxe5 {[%emt 0:00:05]} Qh3 {[%emt 0:01:26]} 44. Bd5 {[%emt 0:01:08]} Qxe3+ {[%emt 0:04:03]} 45. Ka2 {[%emt 0:00:03]} Qd3 {[%emt 0:13:10]} 46. Bb3 {[%emt 0:00:35]} Qa6 {[%emt 0:02:54]} 47. Re7 {[%emt 0:06:05]} (47. Rb4 $142) 47... Rb8 $19 {[%emt 0:09:06]} 48. e6 {[%emt 0:00:23]} f6 {[%emt 0:00:22]} 49. Rd7 {[%emt 0:01:52]} Qb5 {[%emt 0:00:53]} (49... Rxb3 $142 50. Rxg7+ Kxg7 51. Kxb3 Qxe6+ 52. Kc2 Qe4+ 53. Kb3 Kh7 54. Bxf6 Qe6+ 55. Kb4 Qxf6 56. Kc4 Qc6+ 57. Kd4 Kg6 58. Kd3 Qa4 59. Ke3 Kf5 (59... Qxa3+ {leads to mate.} 60. Ke4 Qa4+ 61. Ke3 Kf5 62. Kf3 Qe4+ 63. Kf2 Kg4 64. Kg1 Kf3 65. Kh2 Qc2+ 66. Kh3 Qh7#) 60. Kd3 Kf4 (60... Qxa3+ 61. Kd4 Qb4+ 62. Kd5 Kf6 63. Kc6 Ke6 64. Kc7 Qb5 65. Kc8 Kd6 66. Kd8 Qd7#) 61. Kd2 Qb3 (61... Qxa3 62. Kc2 Ke4 63. Kb1 Kd4 64. Kc2 Qa2+ 65. Kd1 Kd3 66. Ke1 Qe2#) 62. a4 Ke4 (62... Qxa4 63. Kd3 Qb4 64. Ke2 Qd6 65. Kf1 Kf3 66. Ke1 Qd8 67. Kf1 Qd1#) 63. a5 Qb2+ 64. Ke1 Ke3 65. Kf1 Qf2#) 50. Rd8+ $19 {[%emt 0:00:13]} Rxd8 {[%emt 0:00:06]} 51. e7+ {[%emt 0:00:03]} Qxb3+ {[%emt 0:00:38]} 0-1

[Event "LEM Niedersachsen-Meister 2025"]
[Site "Verden"]
[Date "2025.01.04"]
[Round "6.2"]
[White "Voege, Tobias"]
[Black "Polster, Christian"]
[Result "0-1"]
[ECO "D31"]
[WhiteElo "2292"]
[BlackElo "2252"]
[Annotator "TA"]
[PlyCount "90"]
[EventDate "2024.12.27"]
[EventType "swiss"]
[EventCountry "GER"]
[SourceTitle "playchess.com"]
[Source "ChessBase"]
[SourceQuality "1"]
[TimeControl "40/5400+30:1800+30"]

{[%evp 22,90,25,31,23,35,20,20,187,-61,175,0,0,-56,-59,-60,-54,-61,0,0,0,-72,0,0,0,-39,0,0,737,0,0,0,0,-389,-383,-400,-392,-381,-369,-637,-343,-345,-309,-581,-320,-456,-474,-477,-472,-508,-434,-525,-506,-845,-845,-1592,-1498,-881,-637,-5601,-520,-29938,-29939,-29943,-29944,-29960,-12850,-29967,-29968,-29964,-29963]} 1. d4 {[%emt 0:00:22]} d5 {[%emt 0:00:12]} 2. c4 {[%emt 0:00:51]} e6 {[%emt 0:00:10]} 3. Nc3 {[%emt 0:02:22]} c6 {[%emt 0:02:34]} 4. e4 {[%emt 0:00:28]} dxe4 {[%emt 0:00:10]} 5. Nxe4 {[%emt 0:00:05]} Bb4+ {[%emt 0:00:13]} 6. Bd2 {[%emt 0:00:41]} Qxd4 {[%emt 0:00:48]} 7. Bxb4 {[%emt 0:00:05]} Qxe4+ {[%emt 0:00:11]} 8. Be2 {[%emt 0:00:08]} Na6 {[%emt 0:01:40]} 9. Bc3 {[%emt 0:00:51]} Ne7 {[%emt 0:06:44]} 10. Nf3 {[%emt 0:02:14]} f6 {[%emt 0:03:39]} 11. O-O {[%emt 0:00:23]} e5 {[%emt 0:01:58]} 12. Nxe5 {[%emt 0:03:24]} fxe5 {[%emt 0:30:34]} 13. Bh5+ {[%emt 0:00:15]} g6 {[%emt 0:00:08]} 14. Re1 {[%emt 0:00:22]} Qh4 $2 {[%emt 0:01:05] [#]} (14... Qxc4 $11 15. Rxe5 gxh5) 15. Rxe5 $2 {[%emt 0:19:10]} (15. Bf3 $1 $18 Rf8 (15... Qxc4 $2 16. Rxe5 Bd7 17. Re4 $18) 16. Re4 (16. Rxe5 Bf5 $16)) 15... Rf8 $2 {[%emt 0:09:38]} (15... gxh5 $15 {stays ahead.} 16. Qd6 (16. Rxh5 $2 Qg4 $19) 16... Bd7) 16. g3 $2 {[%emt 0:25:06]} ({White has to play} 16. Bf3 $18 Bf5 17. Qe2) 16... Qf6 $11 {[%emt 0:03:21]} (16... Qxc4 $2 17. Qd6 Qf7 18. Rae1 Qxf2+ 19. Kh1 $18) 17. Qe2 {[%emt 0:03:25]} (17. Re2 Qf7 18. Qd4 Nc7 $15 (18... gxh5 19. Rae1 $11)) (17. Qd2 $11 gxh5 18. Rae1) 17... gxh5 $15 {[%emt 0:09:53]} 18. Re1 {[%emt 0:03:35]} Rf7 {[%emt 0:01:21]} 19. Re4 $1 {[%emt 0:04:05]} Qg5 {[%emt 0:10:18]} (19... Qd6 $1 $15 20. Qxh5 Bf5 (20... Qg6 $2 21. Qh4 $18) 21. Rxe7+ Qxe7 22. Rxe7+ Kxe7) 20. Bd2 $1 $11 {[%emt 0:07:49]} Qf6 {[%emt 0:03:26]} (20... Qc5 $11 21. b4 Nxb4) 21. Bc3 $17 {[%emt 0:05:38] [#]} Qg5 {[%emt 0:00:45]} ({Black should try} 21... Qd6 $1 $17 22. Qxh5 Kf8 (22... Qg6 $2 23. Qh4 $18)) 22. Bd2 $1 $11 {[%emt 0:03:25]} Qf6 {[%emt 0:00:50]} 23. Qxh5 {[%emt 0:07:05]} Be6 {[%emt 0:06:11]} 24. Rxe6 {[%emt 0:06:55]} Qxf2+ {[%emt 0:00:13]} 25. Kh1 {[%emt 0:00:01]} O-O-O $1 {[%emt 0:01:57]} 26. Bg5 {[%emt 0:01:11]} (26. Rxe7 $2 Rxe7 (26... Rxd2 $2 27. R7e2 $19) 27. Qg4+ Rdd7 $19 (27... Kb8 28. Qf4+ Qxf4 29. Bxf4+ Rc7 30. Re7 $19) (27... Red7 $2 28. Bc3 $19)) 26... Rd7 {[%emt 0:02:04]} 27. Bxe7 $2 {[%emt 0:02:12][%mdl 8192]} (27. R6e2 $11 Qf5 28. Re5) 27... Rfxe7 {[%emt 0:01:34]} 28. Rxe7 {[%emt 0:01:03]} Rxe7 {[%emt 0:00:11]} (28... Qxb2 29. Rxd7 (29. Rxh7 Nc5 $18)) 29. Qg4+ {[%emt 0:00:58]} Rd7 {[%emt 0:00:38]} 30. Rd1 $2 {[%emt 0:00:32]} (30. Qe2 Qxe2 31. Rxe2) 30... Qf7 {[%emt 0:00:21]} 31. Kg2 {[%emt 0:00:37]} Qg7 {[%emt 0:00:31]} 32. Qe6 $2 {[%emt 0:00:37]} (32. Qxg7 Rxg7 33. Rd2) 32... Nc7 {[%emt 0:01:18]} 33. Qf5 {[%emt 0:00:20]} (33. Rxd7 $142 Qxd7 (33... Nxe6 $2 34. Rxg7 Nxg7 35. Kf3 $19) 34. Qxd7+ Kxd7 35. Kf3) 33... Qxb2+ $19 {[%emt 0:00:53]} 34. Kh3 {[%emt 0:00:19]} Qg7 $1 {[%emt 0:00:11]} 35. g4 {[%emt 0:00:08]} Qf7 {[%emt 0:00:29]} 36. Rxd7 {[%emt 0:00:13]} Qxd7 {[%emt 0:00:24]} 37. Qf2 {[%emt 0:01:17]} (37. Qf8+ $142 Ne8 38. Kh4 Qd8+ 39. g5) 37... h5 $19 {[%emt 0:00:25]} 38. Qf5 {[%emt 0:00:45]} hxg4+ {[%emt 0:00:24]} 39. Kxg4 {[%emt 0:00:02]} Ne8 {[%emt 0:01:03]} 40. h4 {[%emt 0:00:20]} Kd8 {[%emt 0:00:20]} (40... Ng7 $142 41. Qxd7+ Kxd7) 41. Qxd7+ {[%emt 0:05:42]} (41. a4 $19) 41... Kxd7 {[%emt 0:00:23]} 42. Kg5 {[%emt 0:00:07]} Ke6 {[%emt 0:00:50]} 43. Kg6 {[%emt 0:01:25]} Nf6 {[%emt 0:01:22]} (43... c5 $142 44. h5 b5 45. Kg5 Ke5 (45... bxc4 $2 46. h6 $19) 46. h6 Nf6 (46... bxc4 $2 {is the wrong capture.} 47. h7 $18) 47. h7 Nxh7+ 48. Kg4 Ke4 (48... bxc4 49. Kf3 $19) 49. cxb5 c4 50. Kh5 c3 51. Kg6 c2 52. Kf7 c1=Q (52... c1=R $2 53. Ke6 $19) 53. Ke6 Qc8+ 54. Kd6 Nf6 55. b6 axb6 56. Ke7 Ke5 (56... Nd5+ {is a self mate.} 57. Kf7 Kf5 58. Kg7 Qb7+ 59. Kh8 Kg6 60. Kg8 Qg7#) 57. Kf7 Qg8+ 58. Ke7 Qe8#) 44. a4 {[%emt 0:00:23]} b6 {[%emt 0:00:14]} 45. Kg5 {[%emt 0:00:12]} Ke5 {[%emt 0:00:13]} 0-1

[Event "LEM Niedersachsen-Meister 2025"]
[Site "Verden"]
[Date "2025.01.04"]
[Round "6.3"]
[White "Knuedel, Torben"]
[Black "Hampel, Felix"]
[Result "0-1"]
[ECO "B40"]
[WhiteElo "2308"]
[BlackElo "2343"]
[Annotator "TA"]
[PlyCount "82"]
[EventDate "2024.12.27"]
[EventType "swiss"]
[EventCountry "GER"]
[SourceTitle "playchess.com"]
[Source "ChessBase"]
[SourceQuality "1"]
[TimeControl "40/5400+30:1800+30"]

{[%evp 9,82,5,-5,-8,-8,-4,0,0,26,-22,-19,-37,-25,-19,-14,-42,-51,-89,-86,-94,-79,-193,-176,-237,-197,-310,-151,-147,-140,-153,-144,-167,-175,-183,-180,-170,-173,-173,-167,-178,-175,-181,-171,-216,-212,-229,-227,-209,-209,-218,-204,-853,-186,-189,-214,-210,-198,-279,-284,-278,-285,-322,-322,-402,-405,-459,-452,-665,-639,-760,-773,-775,-794,-1200,-1166]} 1. e4 {[%emt 0:00:44]} c5 {[%emt 0:00:07]} 2. Nf3 {[%emt 0:00:04]} e6 {[%emt 0:00:05]} 3. c3 {[%emt 0:00:07]} Nf6 {[%emt 0:00:11]} 4. Bd3 {[%emt 0:00:49]} d5 {[%emt 0:00:33]} 5. e5 {[%emt 0:01:18]} Nfd7 {[%emt 0:00:10]} 6. Bc2 {[%emt 0:00:59]} c4 {[%emt 0:00:09]} 7. O-O {[%emt 0:01:56]} Nc6 {[%emt 0:00:07]} 8. Re1 {[%emt 0:00:18]} g5 {[%emt 0:01:31]} 9. d4 {[%emt 0:07:10]} (9. b3 $142) 9... cxd3 $11 {[%emt 0:06:19]} 10. Bxd3 {[%emt 0:04:37]} g4 {[%emt 0:04:24]} 11. Nd4 {[%emt 0:01:06]} Ncxe5 {[%emt 0:00:55]} 12. Bb5 {[%emt 0:13:42]} (12. Bc2 {simplifies} h5 13. Be3 Rg8 14. Nd2) 12... Qf6 {[%emt 0:03:49]} 13. c4 {[%emt 0:05:26]} dxc4 {[%emt 0:11:01]} 14. Be3 {[%emt 0:23:18]} a6 {[%emt 0:03:14]} 15. Nc3 {[%emt 0:08:42]} Be7 {[%emt 0:07:46]} 16. Bxd7+ {[%emt 0:06:29]} (16. Ba4 {was worth a try.}) 16... Bxd7 $19 {[%emt 0:00:12]} 17. Ne4 {[%emt 0:07:23] [#]} (17. b3 $142) 17... Qg7 {[%emt 0:07:38]} (17... Qg6 $1 $19 {[%cal Rg6e4] is more deadly.} 18. Bf4 Nd3) 18. Nd6+ $17 {[%emt 0:02:30] [#]} Kf8 $1 {[%emt 0:13:21]} (18... Bxd6 19. Nf5 exf5 20. Qxd6 $17) 19. Nxb7 {[%emt 0:00:43]} Nd3 {[%emt 0:01:52][%cal Og7g6] Wards off Nc5} 20. Re2 {[%emt 0:01:02]} e5 $36 {[%emt 0:03:50][%mdl 2048] Black has strong initiative.} 21. Nb3 {[%emt 0:02:45]} Bc6 {[%emt 0:03:34]} 22. N7c5 {[%emt 0:01:55]} Bf3 {[%emt 0:01:57][%cal Oa8d8] A strong pair of Bishops.} 23. Nxd3 {[%emt 0:00:05]} Bxe2 {[%emt 0:03:07]} (23... cxd3 24. Qxd3 Bxe2 25. Qxe2) 24. Qxe2 {[%emt 0:00:09]} cxd3 {[%emt 0:01:09]} (24... cxb3 25. Nxe5 bxa2 26. Rxa2 $15) 25. Qxd3 {[%emt 0:00:05]} Qg6 {[%emt 0:02:10] Prevents Qe4} 26. Qd7 {[%emt 0:02:01]} Rd8 {[%emt 0:03:12]} 27. Qb7 {[%emt 0:00:09]} Qe6 {[%emt 0:00:36]} 28. Re1 {[%emt 0:03:03]} Kg7 {[%emt 0:02:22]} 29. f4 {[%emt 0:00:14]} gxf3 {[%emt 0:05:00]} 30. Nd4 $2 {[%emt 0:00:40]} (30. Qxf3 Rhg8 31. g3) 30... f2+ $2 {[%emt 0:06:51]} (30... Rxd4 31. Bxd4 f2+ 32. Bxf2 $11) (30... exd4 31. Bxd4+ Rxd4 32. Rxe6 Bc5) 31. Bxf2 $19 {[%emt 0:00:24]} Qd7 {[%emt 0:00:34]} (31... exd4 $2 32. Rxe6 (32. Qxe7 $2 {is the wrong capture.} Qxe7 33. Rxe7 d3 $19) 32... Bg5 33. Qc7 $18 (33. Rxa6 d3 $18)) ({Weaker is} 31... Rxd4 32. Bxd4 Bf6 33. Bc3 $14) 32. Qxd7 {[%emt 0:01:36]} Rxd7 {[%emt 0:00:01]} 33. Nf5+ {[%emt 0:00:20]} (33. Rxe5 $142 Rc8 34. Nf5+ Kf6 35. Nxe7 Rxe7 36. Re1 Rxe1+ 37. Bxe1) 33... Kg6 {[%emt 0:00:46]} 34. Nxe7+ {[%emt 0:03:36]} Rxe7 {[%emt 0:00:01][%mdl 4096] Endgame KRR-KRB} 35. b4 {[%emt 0:00:15]} Rd8 {[%emt 0:03:12]} 36. a4 {[%emt 0:00:57]} Rb7 {[%emt 0:02:17]} 37. Bc5 {[%emt 0:00:11]} Rd5 {[%emt 0:00:43][%cal Oa6a5] ...a5! is the strong threat.} 38. Re3 {[%emt 0:00:54] [#]} (38. a5 $142) 38... a5 $1 {[%emt 0:01:04]} 39. Rg3+ {[%emt 0:00:51]} (39. Re4 Kf5) 39... Kf5 {[%emt 0:00:29]} 40. Rf3+ {[%emt 0:00:59]} Ke6 {[%emt 0:00:12]} 41. Rb3 {[%emt 0:01:22]} Rxc5 {[%emt 0:00:06]} 0-1

[Event "LEM Niedersachsen-Meister 2025"]
[Site "Verden"]
[Date "2025.01.04"]
[Round "6.4"]
[White "Mueer, Sebastian"]
[Black "Nechitaylo, Nikita"]
[Result "0-1"]
[ECO "E20"]
[WhiteElo "2175"]
[BlackElo "2239"]
[Annotator "TA"]
[PlyCount "102"]
[EventDate "2024.12.27"]
[EventType "swiss"]
[EventCountry "GER"]
[SourceTitle "playchess.com"]
[Source "ChessBase"]
[SourceQuality "1"]
[TimeControl "40/5400+30:1800+30"]

{[%evp 15,102,-16,0,-10,0,5,0,0,-9,-14,35,34,18,0,0,0,0,-3,41,18,112,107,132,55,55,26,16,16,29,-98,-93,-156,-160,-170,-171,-168,-145,-145,-164,-212,-158,-162,-155,-212,-209,-191,-218,-222,-213,-219,-210,-252,-244,-233,-187,-179,-180,-191,-188,-270,-231,-357,-352,-373,-313,-539,-522,-639,-639,-603,-591,-565,-587,-700,-571,-1037,-1029,-976,-971,-966,-931,-29984,-29985,-29985,-29986,-29988,-29989,-29985,-6232]} 1. d4 {[%emt 0:05:42]} Nf6 {[%emt 0:00:04]} 2. c4 {[%emt 0:00:06]} e6 {[%emt 0:00:03]} 3. Nc3 {[%emt 0:00:07]} Bb4 {[%emt 0:00:06]} 4. f3 {[%emt 0:00:06]} O-O {[%emt 0:00:08]} 5. e4 {[%emt 0:00:06]} d5 {[%emt 0:00:03]} 6. e5 {[%emt 0:00:12]} Nfd7 {[%emt 0:00:03]} 7. cxd5 {[%emt 0:00:09]} exd5 {[%emt 0:00:06]} 8. f4 {[%emt 0:00:06]} c5 {[%emt 0:02:20]} 9. a3 {[%emt 0:00:22]} Ba5 {[%emt 0:07:40]} 10. Be3 $1 {[%emt 0:00:49]} Nc6 {[%emt 0:01:14]} 11. Nf3 {[%emt 0:00:32]} cxd4 {[%emt 0:01:46]} 12. Nxd4 {[%emt 0:01:17]} Bxc3+ {[%emt 0:00:16]} (12... Bb6 $11 13. Qd2 (13. Nxd5 Bxd4 14. Bxd4 Ndxe5 $15) 13... Nc5) 13. bxc3 $14 {[%emt 0:00:02]} Qa5 {[%emt 0:00:09]} 14. Rc1 {[%emt 0:08:47]} Nc5 {[%emt 0:03:57]} 15. Be2 {[%emt 0:03:56]} Nxd4 {[%emt 0:04:39]} 16. Bxd4 {[%emt 0:00:50]} Bd7 {[%emt 0:07:21]} 17. O-O {[%emt 0:01:56]} Rac8 {[%emt 0:02:49]} (17... Bf5 $11 {remains equal.}) 18. f5 $16 {[%emt 0:09:33]} Ba4 {[%emt 0:02:57] [#]} 19. Qe1 {[%emt 0:01:37]} ({Better is} 19. Qd2 $1 $16) 19... Nb3 $14 {[%emt 0:00:07]} 20. Rd1 {[%emt 0:00:05]} Nxd4 {[%emt 0:05:46]} 21. Rxd4 {[%emt 0:00:23]} Bc2 {[%emt 0:00:43]} 22. Rf3 {[%emt 0:11:39]} (22. f6 $11) 22... Be4 $1 $17 {[%emt 0:02:11]} (22... Qxa3 $2 23. Qd2 (23. Rxd5 $2 Be4 $19) 23... Be4 24. Rg3 Bxf5 25. Qe3 $19) 23. Rh3 {[%emt 0:05:18]} (23. Rg3 $142) 23... Bxf5 $17 {[%emt 0:01:06]} (23... Qxa3 24. f6 $11) 24. Bg4 {[%emt 0:00:02]} Bxg4 $1 {[%emt 0:03:23]} 25. Rxg4 {[%emt 0:00:01]} Rc6 {[%emt 0:01:18]} (25... Qxa3 26. Rgh4 h6 27. Rxh6 Qc5+ (27... gxh6 28. Qg3+ Kh7 29. Rxh6+ Kxh6 30. Qf4+ Kh5 31. Qf5+ Kh6 32. Qf4+ Kh7 33. Qh4+ Kg6 34. Qg4+ Kh6 35. Qf4+ $11) 28. Kh1 gxh6 29. Qg3+ Kh7 30. Qd3+ Kg7 31. Qg3+ Kh7 32. Qd3+ Kg7 33. Qg3+ Kh7 $11) 26. Rb4 {[%emt 0:10:45]} b6 {[%emt 0:13:00]} 27. Qb1 {[%emt 0:02:49]} (27. a4) 27... Qc5+ {[%emt 0:01:13]} (27... Qxa3 28. Qxh7#) 28. Rd4 {[%emt 0:00:41]} h6 {[%emt 0:00:51]} (28... Qxa3 29. Qxh7#) 29. Qb3 {[%emt 0:00:07]} (29. Qb4 $17) 29... Re8 $19 {[%emt 0:01:22]} 30. Re3 {[%emt 0:00:46]} Rce6 {[%emt 0:01:40]} 31. Qxd5 {[%emt 0:02:22]} Qxa3 {[%emt 0:00:05]} (31... Rxe5 32. Qxc5 bxc5 33. Rxe5 Rxe5 34. Rd8+ Kh7 35. Rd7 $15) 32. Rd1 {[%emt 0:00:40]} Qe7 {[%emt 0:05:58]} 33. Rf1 {[%emt 0:03:20]} a5 {[%emt 0:09:24]} (33... Rxe5 34. Rxe5 Qxe5 35. Qxf7+ Kh7 36. Qxa7 $17) 34. Ref3 {[%emt 0:04:58]} Rxe5 {[%emt 0:09:45]} 35. Qxf7+ {[%emt 0:01:51]} Qxf7 {[%emt 0:00:04]} 36. Rxf7 {[%emt 0:00:07]} Rb5 {[%emt 0:00:42]} 37. R7f3 {[%emt 0:02:51]} (37. h3 $142) 37... Rc8 {[%emt 0:00:14]} 38. Rd1 {[%emt 0:03:40]} (38. Rc1 {was called for.}) 38... Rb3 $19 {[%emt 0:00:46]} 39. Rd6 {[%emt 0:03:21]} b5 {[%emt 0:00:52]} (39... Rbxc3 40. Rxc3 Rxc3 41. Rxb6 $17) 40. Ra6 $2 {[%emt 0:02:57]} (40. Rb6) 40... a4 $19 {[%emt 0:01:09]} (40... Rbxc3 41. Rxc3 Rxc3 42. Rxa5 $17) (40... Rcxc3 41. Ra8+ Kh7 42. Rxc3 Rxc3 43. Rxa5 $15) 41. Ra5 {[%emt 0:30:28]} a3 {[%emt 0:31:37]} (41... Rcxc3 $2 42. Rxc3 Rxc3 43. Rxb5 $19) 42. Kf2 {[%emt 0:05:01]} Rb2+ {[%emt 0:00:21]} (42... Rcxc3 43. Rxc3 Rxc3 44. Rxb5 $17) 43. Kg3 {[%emt 0:00:02]} a2 {[%emt 0:00:58]} 44. Kh3 {[%emt 0:04:11]} Rd8 {[%emt 0:00:23]} 45. Ra7 {[%emt 0:01:16]} Rd1 {[%emt 0:01:00]} 46. Rg3 {[%emt 0:00:24]} a1=Q {[%emt 0:01:12]} (46... a1=B 47. Rgxg7+ Kf8 48. Raf7+ Ke8 49. Ra7 $11) 47. Rgxg7+ {[%emt 0:00:11] [#]} Kf8 $1 {[%emt 0:00:03]} 48. Raf7+ {[%emt 0:00:09]} Ke8 {[%emt 0:00:04]} 49. Re7+ {[%emt 0:00:00]} Kd8 {[%emt 0:00:00]} 50. Ref7 {[%emt 0:00:00]} Rd3+ {[%emt 0:00:00]} 51. g3 {[%emt 0:00:00]} Re2 {[%emt 0:00:00]} ({Worse is} 51... Rxc3 52. Rg8#) (51... Re3 $142 52. Rg8+ Re8 53. Rg6 Qh1 (53... Rxh2+ 54. Kxh2 Qa2+ 55. Kh3 Qxf7 56. Rd6+ Kc7 57. Rxh6 Qd7+ 58. Kg2 Qf5 59. Rf6 Re2+ 60. Kg1 Qxf6 61. g4 Qf2+ 62. Kh1 Qh2#) 54. Rd6+ Kc8 55. Re6 Rg8 (55... Rxe6 {gets mated.} 56. Rf8+ Kd7 57. Kg4 Qd1+ 58. Rf3 Rxh2 59. Kf4 Qd2+ 60. Re3 Qxe3+ 61. Kg4 Qe4#) 56. Re8+ Rxe8 57. Kg4 Qe4+ (57... Rxh2 58. Rc7+ Kxc7 59. Kf5 Qf3+ 60. Kg6 Rg8+ 61. Kh7 Qf7#) 58. Kh3 Qe6+ 59. Rf5 Qxf5+ 60. g4 Qf3+ 61. Kh4 Rxh2#) 0-1